{"text_format":"1","workbook":"xlsx","n_sheets":7,"sheets":["Титульный","СВОД","Форма 1.3.","Форма 1.9.","Форма 8.1.","Форма 8.3.","TEHSHEET"],"not_rendered":{"charts":0,"images":0,"macros":1,"external_links":0,"defined_names":8,"comments":1,"pivot_tables":0},"unopened":[],"bounds":{"document_bytes":16777216,"sheet_cells":100000,"rows_first":2000,"rows_last":500,"rows_between":2000,"halvings":0,"cell_chars":16384,"cell_head_chars":4096},"cells_cut":0,"cells_raw":0,"read":"whole","date_system":"1900"}

{"sheet":"Титульный","index":0,"n_rows":16,"n_cols":6,"rows_kept":16,"cut":false,"hidden":false,"merged":[[3,4,3,5]]}
[]
[null,null,null,null,null,"Версия 1.0.7"]
[]
[null,null,null,null,"Расчет фактических значений показателей надежности и качества "]
[]
[null,null,null,null,"Субъект РФ","Тюменская область"]
[]
[null,null,null,null,"Период регулирования","2022"]
[]
[null,null,null,null,"Наименование  организации","ООО СК \"Восток\""]
[]
[null,null,null,null,null,"Должностное лицо, ответственное за составление формы"]
[null,null,null,null,"Фамилия, имя, отчество","Осипов Михаил Александрович"]
[null,null,null,null,"Должность","Ведущий экономист"]
[null,null,null,null,"Контактный телефон","8 (3452) 514-088"]
[null,null,null,null,"e-mail","m.osipov@ckvostok.com"]

{"sheet":"СВОД","index":1,"n_rows":53,"n_cols":9,"rows_kept":53,"cut":false,"hidden":false,"merged":[[3,1,4,1],[3,2,4,2],[52,1,52,6],[28,6,29,6],[28,7,29,7],[38,2,38,3],[28,8,29,8],[28,1,29,1],[28,2,29,2],[28,3,28,4],[28,5,29,5]]}
[]
[]
[null,"I - Расчет показателя уровня надежности оказываемых услуг"]
[null,"Показатель","Ед.изм.","Значение"]
[null,null,null,"факт"]
[null,1,2,3]
[null,"Показатель средней продолжительности прекращения передачи электрической энергии на точку поставки в каждом расчетном периоде регулирования в пределах долгосрочного периода регулирования (Пsaidi)","час",0.29121074321443796]
[null,"Показатель средней частоты прекращения передачи электрической энергии на точку поставки в каждом расчетном периоде регулирования в пределах долгосрочного периода регулирования (Пsaifi)","шт",6.4942447065510875E-2]
[null,"Максимальное за год число точек поставки потребителей услуг сетевой организации\n","шт",7037]
[]
[null,"II - Расчет показателя уровня качества осуществляемого технологического присоединения к сети"]
[null,"Показатель","плановое значение","фактическое значение"]
[null,"1. Показатель качства рассмотрения заявок на техлологическое присоединение к сети","Число, шт.","Число, шт."]
[null,"1.1.Число заявок на технологическое присоединение к сети, поданных в соответствии с требованиями нормативных правовых актов, по которым сетевой организацией в соответствующий расчетный период направлен проек договра об осуществлении технологического присоединения заявителя к сети, шт. (Nзаяв_тпр)",498,498]
[null,"1.2.Число заявок на технологическое присоединение к сети, поданных в соответствии с требованиями нормативных правовых актов, по которым сетевой организацией в соответствующий расчетный период направлен проек договра об осуществлении технологического присоединения к сети с нарушением установленных сроков его направления, шт.                                                                                                                                                                                                                                                                                              нс                                                                                                                                                                                                                                                                                                                                                                                (N заяв_тпр)",0,0]
[null,"2. Итого показатель качества рассмотрения заявок на технологическое присоединение к сети     (П заяв_тпр)",{"$f":"C14/MAX(1,(C14-C15))","v":1},{"$f":"D14/MAX(1,(D14-D15))","v":1}]
[null,"3. Показатель качства рассмотрения заявок на техлологическое присоединение к сети"]
[null,"3.1.Число договорв об осуществлении  технологического присоединения заявителей к сети, исполненных в соответствующем расчетном периоде, по которым имеется подписанный сторонами акт о технологическом присоединении, шт. (Nсд_тпр)",264,264]
[null,"3.2.Число договорв об осуществлении  технологического присоединения заявителей к сети, исполненных в соответствующем расчетном периоде, по которым имеется подписанный сторонами акт о технологическом присоединении, по которым произошло нарушение установленных сроков технологического присоединения, шт.                                                                          11               нс                                                                                                                                                                                                                                                                                                                                                                                (N сд_тпр)",0,0]
[null,"4. Итого показатель качества исполнения договоров об осуществлении технологического присоединение заявителей к  сети (П нс_тпр)",{"$f":"C18/MAX(1,(C18-C19))","v":1},{"$f":"D18/MAX(1,(D18-D19))","v":1}]
[null,"5. Показатель качства рассмотрения заявок на техлологическое присоединение к сети"]
[null,"5.1Число вступивших в законную силу решений антимонопольного  законодательства и (или) суда об установлении нарушений сетевой организацией требований антимонопольного законодательства РФ в части оказания услуг по технологическому присоединению в соответствующем расчетном периоде, шт. (Nн_тпр)",0,0]
[null,"5.2.Общее число заявок на технологическое присоединение к сети, поданных заявителями в соответствующий расчетнгый период, в десятках шт. без округления (Nочз_тпр) ",49.8,49.8]
[null,"6.Показатель соблюдения антимонопольного законодательства при  технологическом присоединении к электрическим сетям сетевой организации  (П нпа_тпр)",{"$f":"C23/MAX(1,(C23-C22))","v":1},{"$f":"D23/MAX(1,(D23-D22))","v":1}]
[null,"Показатель уровня качества оказываемых услуг ТСО",{"$f":"IF((C16*0.5+C20*0.5)=0,0,IF((C16*0.5+C20*0.5)<1,1,(C16*0.5+C20*0.5)))","v":1},{"$f":"IF((D16*0.5+D20*0.5)=0,0,IF((D16*0.5+D20*0.5)<1,1,(D16*0.5+D20*0.5)))","v":1}]
[null,null,{"$f":"C16*0.4+C20*0.4+C24*0.2","v":1},{"$f":"D16*0.4+D20*0.4+D24*0.2","v":1}]
[]
[null,"III - СВОД ПО ПОКАЗАТЕЛЯМ НАДЕЖНОСТИ И КАЧЕСТВА И РАСЧЕТ ОБОБЩЕННОГО ПОКАЗАТЕЛЯ"]
[null,"Показатель","Ед.изм.","Значение показателей надежности и качества",null,"Коэффициент допустимого отклонения показателя надежности и качества","Отметка о достижении показателя надежности и качества","Отметка о  достоверности отчетных данных","Определение коэффициентов надежности и качества"]
[null,null,null,"плановое","фактическое"]
[null,"Показатель средней продолжительности прекращения (Пsaidi)","-",{"$f":"SUMIFS(TEHSHEET!S2:S214,TEHSHEET!Q2:Q214,Титульный!F10,TEHSHEET!R2:R214,Титульный!F8)","v":0.21790000000000001},{"$f":"D7","v":0.29121074321443796},0.3,{"$f":"IF(AND(E31=0,D31=0),\"достигнуто\",IF(E31<=D31*(1-F31),\"достигнуто с улучшением\",IF(E31<=D31*(1+F31),\"достигнуто\",\"не достигнуто\")))","v":"не достигнуто"},"+",{"$f":"IF(H31=\"-\",-1,IF(G31=\"достигнуто\",0,IF(G31=\"не достигнуто\",-1,1)))","v":-1}]
[null,"Показатель средней частоты прекращения (Пsaifi)","-",{"$f":"SUMIFS(TEHSHEET!T2:T214,TEHSHEET!Q2:Q214,Титульный!F10,TEHSHEET!R2:R214,Титульный!F8)","v":0.17469999999999999},{"$f":"D8","v":6.4942447065510875E-2},{"$f":"F31","v":0.3},{"$f":"IF(AND(E32=0,D32=0),\"достигнуто\",IF(AND(E32<=D32*(1-F32),D32),\"достигнуто с улучшением\",IF(E32<=D32*(1+F32),\"достигнуто\",\"не достигнуто\")))","v":"достигнуто с улучшением"},"+",{"$f":"IF(H32=\"-\",-1,IF(G32=\"достигнуто\",0,IF(G32=\"не достигнуто\",-1,1)))","v":1}]
[null,"Показатель уровня качества осуществляемого технологического присоединения к сети (Птпр)","-",{"$f":"SUMIFS(TEHSHEET!U2:U214,TEHSHEET!Q2:Q214,Титульный!F10,TEHSHEET!R2:R214,Титульный!F8)","v":1},{"$f":"D25","v":1},{"$f":"$F$31","v":0.3},{"$f":"IF(AND(E33=0,D33=0),\"достигнуто\",IF(AND(E33<=D33*(1-F33),D33),\"достигнуто с улучшением\",IF(E33<=D33*(1+F33),\"достигнуто\",\"не достигнуто\")))","v":"достигнуто"},"+",{"$f":"IF(H33=\"-\",-1,IF(G33=\"достигнуто\",0,IF(G33=\"не достигнуто\",-1,1)))","v":0}]
[]
[null,"Значения обобщенного показателя надежности и качества"]
[null,"ТСО",{"$f":"I31*C40+I32*D40+I33*E40","v":0}]
[]
[null,"Коэффициенты значимости коэффициентов надежности и качества"]
[null,"Организация","Коэффициенты надежности",null,"Коэффициент качества"]
[null,"ТСО",0.3,0.3,0.3]
[]
[null,"IV - Расчет корректировки НВВ по показателям надежности и качества"]
[]
[]
[null,"Коэффициент корректировки"]
[null,"Процент корректрировки на текущий год при представлении достоверных отчетных данных",{"$f":"2%*C36","v":0}]
[]
[]
[null,"Справочно:"]
[null,"Коэффициент корректировки в случае непредставления отчетных данных",-0.03]
[null,"Предельный процент отклонения отчетных данных организации от данных Технадзора, ФАС, Фед. Службы по защите прав потребителей, Системного Оператора, при превышении которого, данные признаются недостоверными"]
[null,"на 2013 год и далее",0.1]
[null,"При представлении для расчета какого-либо показателя недостоверных отчетных данных, индикатор выполнения по показателю (Кнад и/или Ккач1, Ккач2)  признается равным -1"]

{"sheet":"Форма 1.3.","index":2,"n_rows":7,"n_cols":5,"rows_kept":7,"cut":false,"hidden":false,"merged":[[1,1,1,4]]}
[]
[null,"Форма 1.3. Расчет показателя средней продолжительности прекращения передачи электрической энергии потребителям услуг и показателя средней частоты прекращений передачи электрической энергии потребителям услуг сетевой организации"]
[]
[null,"№\nп/п","Наименование составляющей показателя","Метод определения","Примечания"]
[null,"1","Максимальное за расчетный период регулирования число точек поставки потребителей услуг сетевой \nорганизации, шт.",7037,"В соответствии с заключенными \nдоговорами по передаче электроэнергии"]
[null,"2","Средняя продолжительность прекращения передачи электрической энергии на точку поставки (Пsaidi), час",{"$f":"IF(ISERR(SUMPRODUCT((Столбец9*Столбец13)*(Столбец8=\"В\")*(Столбец27=1))/D$5),0,SUMPRODUCT((Столбец9*Столбец13)*(Столбец8=\"В\")*(Столбец27=1))/D$5)","v":0.29121074321443796},"Сумма произведений по столбцу 9 \nи столбцу 13 формы 8.1, деленная \nна значение пункта 1 Формы 1.3\n(Σ столбец 9 * столбец 13) / пункт 1 \nформы 1.3).\nПри этом учитываются только события, \nпо которым значения в столбце 8 равны \"В\", \nа в столбце 27 равны \"1\""]
[null,"3","Средняя частота прекращений передачи электрической энергии на точку поставки (Пsaifi), шт.",{"$f":"IF(ISERR(SUMIFS(Столбец13,Столбец8,\"В\",Столбец27,1)/D$5),0,SUMIFS(Столбец13,Столбец8,\"В\",Столбец27,1)/D$5)","v":6.4942447065510875E-2},"Сумма по столбцу 13 формы 8.1 \nи деленная на значение пункта 1 формы 1.3\n(Σ столбец 13 формы 8.1 / пункт 1 \nформы 1.3).\nПри этом учитываются только события, \nпо которым значения в столбце 8 равны \"В\", \nа в столбце 27 равны \"1\""]

{"sheet":"Форма 1.9.","index":3,"n_rows":12,"n_cols":5,"rows_kept":12,"cut":false,"hidden":false,"merged":[[1,1,1,4]]}
[]
[null,"Форма 1.9. Данные об экономических и технических характеристиках \nи (или) условиях деятельности территориальных сетевых организаций"]
[]
[null,"№\nп/п","Характеристики и (или) условия \nдеятельности сетевой организации","Значение характеристики","Наименование и реквизиты подтверждающих документов \n(в том числе внутренних документов сетевой организации)"]
[null,"1","Протяженность линий электропередачи \nв одноцепном выражении (ЛЭП), км",500.33]
[null,"1.1","Протяженность кабельных линий электропередачи в одноцепном \nвыражении, км",283.83999999999997]
[null,"2","Доля кабельных линий электропередачи \nв одноцепном выражении от общей протяженности линий электропередачи \n(Доля КЛ), %",{"$f":"D6/D5","v":0.56730557831830986}]
[null,"3","Максимальной за год число точек \nпоставки, шт.",7037]
[null,"4","Число разъединителей и выключателей, шт.",1389]
[null,"5","Средняя летняя температура, °C",19.399999999999999]
[null,"6","Номер группы (m) территориальной \nсетевой организации по показателю\nПsaidi",5,"-"]
[null,"7","Номер группы (m) территориальной \nсетевой организации по показателю\nПsaifi",5,"-"]

{"sheet":"Форма 8.1.","index":4,"n_rows":31,"n_cols":29,"rows_kept":31,"cut":false,"hidden":false,"merged":[[3,2,3,10],[5,25,6,25],[5,22,6,22],[4,14,4,22],[4,13,6,13],[4,12,6,12],[5,14,6,14],[5,15,5,17],[5,18,5,21],[4,11,6,11],[3,25,4,27],[3,24,6,24],[3,11,3,23],[1,4,1,26],[3,1,7,1],[29,2,29,4],[3,28,6,28],[4,2,6,2],[4,3,6,3],[4,4,6,4],[4,5,6,5],[4,6,6,6],[4,7,6,7],[4,8,6,8],[4,9,6,9],[4,10,6,10],[5,26,6,26],[5,27,6,27],[4,23,6,23]]}
[]
[null,null,null,null,"Форма 8.1. Журнал учета данных первичной информации по всем \nпрекращениям передачи электрической энергии, произошедшим на объектах сетевой организации"]
[]
[null,null,"Данные о факте прекращения передачи электрической энергии",null,null,null,null,null,null,null,null,"Данные о масштабе прекращения передачи электрической энергии в сетевой организации",null,null,null,null,null,null,null,null,null,null,null,null,"Перечень смежных сетевых организаций, затронутых прекращением передачи электрической энергии","Данные о причинах прекращения передачи электрической энергии и их расследовании",null,null,"Учет в показателях надежности, в т.ч. индикативных показателях надежности (0 - нет, 1 - да)"]
[null,null,"Номер прекращения передачи электрической энергии / Номер итоговой строки","Наименование структурной единицы сетевой организации ","Вид объекта: КЛ, ВЛ, КВЛ, ПС, ТП, РП","Диспетчерское наименование объекта электросетевого хозяйства сетевой организации, в результате отключения которой произошло прекращение передачи электроэнергии потребителям услуг ","Высший класс напряжения отключенного оборудования сетевой организации, кВ","Время и дата начала прекращения передачи электрической энергии (часы, минуты, ГГГГ.ММ.ДД)","Время и дата восстановления режима потребления электрической энергии потребителей услуг (часы, минуты, ГГГГ.ММ.ДД)","Вид прекращения передачи электроэнергии (П, А, В)","Продолжительность прекращения передачи электрической энергии, час","Перечень объектов электросетевого хозяйства, отключение которых привело к прекращению передачи электрической энергии потребителям услуг (ПС, ТП, РП, ВЛ, КЛ)","Перечень потребителей 1-й и 2-й категорий надежности, в отношении которых произошло полное ограничение режима потребления электрической энергии","Перечень потребителей 1-й и 2-й категорий надежности, в отношении которых произошло частичное ограничение режима потребления электрической энергии","Количество точек поставки потребителей услуг сетевой организации, в отношении которых произошел перерыв электроснабжения, шт., в том числе:",null,null,null,null,null,null,null,null,"Суммарный объем фактической нагрузки (мощности) на присоединениях потребителей услуг, по которым произошло прекращение передачи электрической энергии на момент возникновения такого события, кВт"]
[null,null,null,null,null,null,null,null,null,null,null,null,null,null,"ВСЕГО","в разделении категорий надежности потребителей электрической энергии",null,null,"в разделении уровней напряжения ЭПУ потребителя электрической энергии",null,null,null,"Смежные сетевые организации и производители электрической энергии",null,null,"Номер и дата акта расследования технологического нарушения, записи в оперативном журнале","Код организационной причины аварии","Код технической причины повреждения оборудования"]
[null,null,null,null,null,null,null,null,null,null,null,null,null,null,null,"1-я категория надежности","2-я категория надежности","3-я категория надежности","ВН (110 кВ и выше)","СН1 (35 кВ)","СН2 (6-20 кВ)","НН (0,22-1 кВ)"]
[null,null,1,2,3,4,5,6,7,8,9,10,11,12,13,14,15,16,17,18,19,20,21,22,23,24,25,26,27]
[]
[null,null,1,"ООО \"СК Восток\"","ТП","ПС 110/10кВ \"Чикча\", ф.Водозабор, ТП-1307","10 (10.5)","03,38 2022.01.03","09,22 2022.01.03","В",5.73,"ТП 0.38 кВ(Все ЛЭП ТП)",0,0,15,0,0,15,0,0,0,15,0,250,null,"Акт №43 от 12.01.2022","3.4.9.3","4.21",1]
[null,null,2,"ООО \"СК Восток\"","ВЛ","ПС 110/10кВ \"Сибжилстрой\"  ф. Воронино","10 (10.5)","10,10 2022.03.24","23,08 2022.03.24","В",12.97,"ТП 0.38 кВ ТП-948;ТП 0.38 кВ ТП-1477;ТП 0.38 кВ ТП-1183;ТП 0.38 кВ ТП-803;ТП 0.38 кВ ТП-955",0,0,1500,0,0,1500,0,0,0,1500,0,1400,"ООО \"Дорстрой\"","Акт №44 от 06.04.2022","3.4.9.1","4.21",0]
[null,null,3,"ООО \"СК Восток\"","ВЛ","ПС 110/10кВ \"Утяшево\" ф.Сельхозтехника-2","10 (10.5)","02,07 2022.03.31","13,54 2022.03.31","В",11.78,"ВЛ 10 (10.5) кВ;ТП 0.38 кВ 505, 502,503, 1641, 1635(Все ЛЭП ТП)",0,0,5,0,0,5,0,0,5,0,0,400,null,"Акт №45 от 14.04.2022","3.4.14","4.21",1]
[null," X ",4,"ООО \"СК Восток\"","КВЛ","ПС 110/10кВ \"Утяшево\" ф.Сельхозтехника-2","10 (10.5)","19,29 2022.04.07","18,23 2022.04.09","В",46.9,"КВЛ 10 (10.5) кВ",0,0,2,0,0,2,0,0,2,0,0,350,null,"Акт №46 от 21.04.2022","3.4.14","4.21",1]
[null," X ",5,"ООО \"СК Восток\"","ТП","РП 10/10кВ \"Новотарманский\", ф.Новотарманский-2, ТП-590/1806 ТП-923/1805, ТП-924/1804","10 (10.5)","19,09 2022.07.01","21,22 2022.07.01","В",2.2200000000000002,"ТП 0.38 кВ(Все ЛЭП ТП)",0,0,270,0,0,270,0,0,0,270,0,350,null,"Акт №47 от 11.07.2022","3.4.14","4.13",1]
[null," X ",6,"ООО \"СК Восток\"","ВЛ","ПС 110/10кВ \"Утяшево\" ф.Сельхозтехника-2","10 (10.5)","07,48 2022.07.06","09,25 2022.07.06","В",1.62,"ВЛ 10 (10.5) кВ;ТП 0.38 кВ 505, 502,503, 1641, 1635(Все ЛЭП ТП)",0,0,5,0,0,5,0,0,5,0,0,400,null,"Акт №48 от 17.07.2022","3.4.14","4.21",1]
[null," X ",7,"ООО \"СК Восток\"","ВЛ","ПС 110/10кВ \"Сибжилстрой\"  ф. Воронино","10 (10.5)","06,23 2022.07.20","07,11 2022.07.20","В",0.8,"ТП 0.38 кВ ТП-948;ТП 0.38 кВ ТП-1477;ТП 0.38 кВ ТП-1183;ТП 0.38 кВ ТП-803;ТП 0.38 кВ ТП-955",0,0,1500,0,0,1500,0,0,0,1500,0,1400,"ООО \"Дорстрой\"","Акт №49 от 30.07.2022","3.4.9.1","4.21",0]
[null," X ",8,"ООО \"СК Восток\"","ВЛ","ПС110/10 \"Чермет\"   Ф. Торфомассив","10 (10.5)","18,28 2022.08.01","20,41 2022.08.01","В",2.2200000000000002,"ВЛ 10 (10.5) кВ",0,0,32,0,0,30,0,0,30,0,2,3792,"АО \"Сибирско-Уральская энергетическая компания\" (АО \"СУЭНКО\") Тюменская обл.;АО \"Россети Тюмень\"","Акт №50 от 11.08.2022","3.4.9.1","4.21",0]
[null," X ",9,"ООО \"СК Восток\"","ВЛ","ПС110/10 \"Червишево\" Ф. Рыбопитомник ВЛ-10кВ","10 (10.5)","21,17 2022.08.09","21,54 2022.08.09","В",0.62,"ВЛ 10 (10.5) кВ",0,0,1,0,0,1,0,0,0,1,0,320,null,"Акт №51 от 19.08.2022","3.4.12.5","4.4",1]
[null," X ",10,"ООО \"СК Восток\"","ВЛ","ПС 110/10кВ \"Утяшево\" ф.Сельхозтехника-2","10 (10.5)","13,54 2022.08.15","18,34 2022.08.15","В",4.67,"ВЛ 10 (10.5) кВ;ТП 0.38 кВ 505, 502,503, 1641, 1635(Все ЛЭП ТП)",0,0,5,0,0,5,0,0,5,0,0,400,null,"Акт №52 от 25.08.2022","3.4.14","4.21",1]
[null," X ",11,"ООО \"СК Восток\"","ВЛ","ПС 110/10 \"Омская\" , ВЛ-1-кВ ф.Промбаза-2","10 (10.5)","18,05 2022.09.26","02,35 2022.09.27","В",8.5,"ВЛ 10 (10.5) кВ",null,null,136,0,0,136,0,0,0,136,0,1500,null,"№53 от 11.10.2022","3.4.14","4.14",1]
[null," X ",12,"ООО \"СК Восток\"","КВЛ","ОАО «ТМ»  ГПП-110/10кВ ф. Тюменская ПМК","10 (10.5)","13,57 2022.11.03","15,01 2022.11.03","В",1.07,"КВЛ 10 (10.5) кВ",0,0,9,0,0,9,0,0,9,0,0,1200,null,"Акт №54 от 14.11.2022","3.4.12.5","4.4",1]
[null," X ",13,"ООО \"СК Восток\"","ВЛ","ПС110/10 \"Чермет\"   Ф. Торфомассив","10 (10.5)","22,45 2022.11.11","04,24 2022.11.12","В",5.65,"ВЛ 10 (10.5) кВ",0,0,32,0,0,30,0,0,30,0,2,3792,"АО \"Сибирско-Уральская энергетическая компания\" (АО \"СУЭНКО\") Тюменская обл.;АО \"Россети Тюмень\"","Акт №55 от 21.11.2022","3.4.12.5","4.14",0]
[null," X ",14,"ООО \"СК Восток\"","ВЛ","ПС 110/10кВ \"Сибжилстрой\"  ф. Воронино","10 (10.5)","10,48 2022.11.15","17,55 2022.11.15","В",7.12,"ТП 0.38 кВ ТП-948;ТП 0.38 кВ ТП-1477;ТП 0.38 кВ ТП-1183;ТП 0.38 кВ ТП-803;ТП 0.38 кВ ТП-955",0,0,1500,0,0,1500,0,0,0,1500,0,1400,"ООО \"Дорстрой\"","Акт №56 от 25.11.2022","3.4.9.1","4.21",0]
[null," X ",15,"ООО \"СК Восток\"","КВЛ","ОАО «ТМ»  ГПП-110/10кВ ф. Тюменская ПМК","10 (10.5)","16,50 2022.12.19","18,20 2022.12.19","В",1.5,"КВЛ 10 (10.5) кВ",0,0,9,0,0,9,0,0,9,0,0,1200,null,"Акт № 57 от 28.12.2022","3.4.12.5","4.4",1]
[null," X "]
[null," X "]
[null," X "]
[null," X "]
[null," X "]
[null,null,"Добавить строку"]
[null," X "]

{"sheet":"Форма 8.3.","index":5,"n_rows":13,"n_cols":5,"rows_kept":13,"cut":false,"hidden":false,"merged":[[1,1,1,4]]}
[]
[null,"Форма 8.3. Расчет индикативного показателя уровня надежности оказываемых услуг для территориальных сетевых организаций и организаций по управлению единой национальной (общероссийской) электрической сетью"]
[]
[null,"№\nп/п","Наименование составляющей показателя","Метод определения"]
[null,1,"Максимальное за расчетный период регулирования число точек поставки сетевой организации, шт., в том числе\nв разбивке по уровням напряжения:",7037,"В соответствии с заключенными договорами \nпо передаче электрической энергии"]
[null,"1.1","ВН (110 кВ и выше), шт.",1,"В соответствии с заключенными договорами \nпо передаче электрической энергии"]
[null,"1.2","СН-1 (35 кВ), шт.",null,"В соответствии с заключенными договорами \nпо передаче электрической энергии"]
[null,"1.3","СН-2 (6 - 20 кВ), шт.",201,"В соответствии с заключенными договорами \nпо передаче электрической энергии"]
[null,"1.4","НН (до 1 кВ), шт.",6835,"В соответствии с заключенными договорами \nпо передаче электрической энергии"]
[null,"2","Средняя продолжительность прекращения передачи электрической энергии на точку поставки (Пsaidi), час.",{"$f":"IF(ISERR(SUMPRODUCT((Столбец9*Столбец13)*(Столбец8=\"В\")*(Столбец27=1))/D$5),0,SUMPRODUCT((Столбец9*Столбец13)*(Столбец8=\"В\")*(Столбец27=1))/D$5)","v":0.29121074321443796},"сумма произведений по столбцу 9 и столбцу 13 \nФормы 8.1, деленная на значение пункта 1 \nФормы 8.3\n((∑ столбец 9 * столбец 13) / пункт 1 Формы 8.3)\nПри этом учитываются только те события, по которым значения в столбце 8 равны \"В\", а в столбце 27 равны 1"]
[null,"3","Средняя частота прекращений передачи электрической энергии на точку поставки (Пsaifi), шт.",{"$f":"IF(ISERR(SUMIFS(Столбец13,Столбец8,\"В\",Столбец27,1)/D$5),0,SUMIFS(Столбец13,Столбец8,\"В\",Столбец27,1)/D$5)","v":6.4942447065510875E-2},"сумма по столбцу 13 Формы 8.1 и деленная на значение пункта 1 Формы 8.3\n(∑ столбец 13 Формы 8.1 / пункт 1 Формы 8.3)\nПри этом учитываются только те события, по которым значения в столбце 8 равны \"В\", а в столбце 27 равны 1"]
[null,"4","Средняя продолжительность прекращения передачи электрической энергии при проведении ремонтных работ (Пsaidi), час.",{"$f":"IF(ISERR(SUMPRODUCT((Столбец9*Столбец13)*(Столбец8=\"П\"))/D$5),0,SUMPRODUCT((Столбец9*Столбец13)*(Столбец8=\"П\"))/D$5)","v":0},"сумма произведений по столбцу 9 и столбцу 13 Формы 8.1, деленная на значение пункта 1\nФормы 8.3\n((∑ столбец 9 * столбец 13) / пункт 1 Формы 8.3)\nПри этом учитываются только те события, по которым значения в столбце 8 равны \"П\""]
[null,"5","Средняя частота прекращений передачи электрической энергии при проведении ремонтных работ (Пsaifi), шт.",{"$f":"IF(ISERR(SUMIFS(Столбец13,Столбец8,\"П\")/D$5),0,SUMIFS(Столбец13,Столбец8,\"П\")/D$5)","v":0},"сумма по столбцу 13 Формы 8.1 и деленная\nна значение пункта 1 Формы 8.3\n(∑ столбец 13 Формы 8.1 / пункт 1 Формы 8.3)\nПри этом учитываются только те события, по которым значения в столбце 8 равны \"П\""]

{"sheet":"TEHSHEET","index":6,"n_rows":279,"n_cols":21,"rows_kept":279,"cut":false,"hidden":true,"merged":[]}
[null,null,null,null,null,null,null,null,null,null,null,null,null,null,null,null,null,null,"Показатель средней продолжительности прекращения передачи электрической энергии на точку поставки","Показатель средней частоты прекращения передачи электрической энергии на точку поставки","Показатель уровня качества оказываемых услуг"]
[null,null,null,null,null,null,null,null,null,null,null,null,null,null,null,1,"Филиал ОАО \"РЖД\" Трансэнерго Свердловская дирекция по энергообеспечению (по сетям Ишимской, Егоршинской, Серовской, Тюменской дистанций электроснабжения)",2020,0.50509999999999999,0.20380000000000001,1.0253000000000001]
[null,null,null,null,null,null,null,null,null,null,null,null,null,null,null,null,"Филиал ОАО \"РЖД\" Трансэнерго Свердловская дирекция по энергообеспечению (по сетям Ишимской, Егоршинской, Серовской, Тюменской дистанций электроснабжения)",2021,0.4975,0.20080000000000001,1.0099]
[null,null,null,null,null,"техпрес",null,null,null,null,null,null,null,null,null,null,"Филиал ОАО \"РЖД\" Трансэнерго Свердловская дирекция по энергообеспечению (по сетям Ишимской, Егоршинской, Серовской, Тюменской дистанций электроснабжения)",2022,0.49009999999999998,0.19769999999999999,1]
[null,null,null,null,null,null,null,null,null,null,null,null,null,null,null,null,"Филиал ОАО \"РЖД\" Трансэнерго Свердловская дирекция по энергообеспечению (по сетям Ишимской, Егоршинской, Серовской, Тюменской дистанций электроснабжения)",2023,0.48270000000000002,0.1948,1]
[null,null,null,null,null,null,null,null,null,null,null,null,null,null,null,null,"Филиал ОАО \"РЖД\" Трансэнерго Свердловская дирекция по энергообеспечению (по сетям Ишимской, Егоршинской, Серовской, Тюменской дистанций электроснабжения)",2024,0.47549999999999998,0.19189999999999999,1]
[null,null,null,null,null,null,null,null,null,null,null,null,null,null,null,2,"Филиал \"Уральский\" АО \"Оборонэнерго\"",2020,4.4021999999999997,0.42809999999999998,1]
[null,null,null,null,null,null,null,null,null,null,null,null,null,null,null,null,"Филиал \"Уральский\" АО \"Оборонэнерго\"",2021,4.3361999999999998,0.42159999999999997,1]
[null,null,null,null,null,null,null,null,null,null,null,null,null,null,null,null,"Филиал \"Уральский\" АО \"Оборонэнерго\"",2022,4.2710999999999997,0.4153,1]
[null,null,null,null,null,null,null,null,null,null,null,null,null,null,null,null,"Филиал \"Уральский\" АО \"Оборонэнерго\"",2023,4.2070999999999996,0.40910000000000002,1]
[null,null,null,null,null,null,null,null,null,null,null,null,null,null,null,null,"Филиал \"Уральский\" АО \"Оборонэнерго\"",2024,4.1439000000000004,0.40289999999999998,1]
[null,null,null,null,null,null,null,null,null,null,null,null,null,null,null,3,"ООО \"ДСК-Энерго\"",2020,9.1700000000000004E-2,0.16370000000000001,1]
[null,null,null,null,null,null,null,null,null,null,null,null,null,null,null,null,"ООО \"ДСК-Энерго\"",2021,9.0300000000000005E-2,0.16120000000000001,1]
[null,null,null,null,null,null,null,null,null,null,null,null,null,null,null,null,"ООО \"ДСК-Энерго\"",2022,8.8900000000000007E-2,0.1588,1]
[null,null,null,null,null,null,null,null,null,null,null,null,null,null,null,null,"ООО \"ДСК-Энерго\"",2023,8.7599999999999997E-2,0.15640000000000001,1]
[null,null,null,null,null,null,null,null,null,null,null,null,null,null,null,null,"ООО \"ДСК-Энерго\"",2024,8.6300000000000002E-2,0.15409999999999999,1]
[null,null,null,null,null,null,null,null,null,null,null,null,null,null,null,4,"ООО \"РемЭнергоСтройСервис\"",2020,0.3352,7.1999999999999995E-2,1]
[null,null,null,null,null,null,null,null,null,null,null,null,null,null,null,null,"ООО \"РемЭнергоСтройСервис\"",2021,0.3301,7.0900000000000005E-2,1]
[null,null,null,null,null,null,null,null,null,null,null,null,null,null,null,null,"ООО \"РемЭнергоСтройСервис\"",2022,0.32519999999999999,6.9900000000000004E-2,1]
[null,null,null,null,null,null,null,null,null,null,null,null,null,null,null,null,"ООО \"РемЭнергоСтройСервис\"",2023,0.32029999999999997,6.88E-2,1]
[null,null,null,null,null,null,null,null,null,null,null,null,null,null,null,null,"ООО \"РемЭнергоСтройСервис\"",2024,0.3155,6.7799999999999999E-2,1]
[null,null,null,null,null,null,null,null,null,null,null,null,null,null,null,5,"ООО \"Тобольскпромэнергосеть\"",2020,0.315,0.14929999999999999,1]
[null,null,null,null,null,null,null,null,null,null,null,null,null,null,null,null,"ООО \"Тобольскпромэнергосеть\"",2021,0.31030000000000002,0.14699999999999999,1]
[null,null,null,null,null,null,null,null,null,null,null,null,null,null,null,null,"ООО \"Тобольскпромэнергосеть\"",2022,0.30570000000000003,0.14480000000000001,1]
[null,null,null,null,null,null,null,null,null,null,null,null,null,null,null,null,"ООО \"Тобольскпромэнергосеть\"",2023,0.30109999999999998,0.14269999999999999,1]
[null,null,null,null,null,null,null,null,null,null,null,null,null,null,null,null,"ООО \"Тобольскпромэнергосеть\"",2024,0.29659999999999997,0.14050000000000001,1]
[null,null,null,null,null,null,null,null,null,null,null,null,null,null,null,6,"ООО \"Транзит-Электро-Тюмень\"",2020,5.6399999999999999E-2,1.83E-2,1]
[null,null,null,null,null,null,null,null,null,null,null,null,null,null,null,null,"ООО \"Транзит-Электро-Тюмень\"",2021,5.5500000000000001E-2,1.7999999999999999E-2,1]
[null,null,null,null,null,null,null,null,null,null,null,null,null,null,null,null,"ООО \"Транзит-Электро-Тюмень\"",2022,5.4699999999999999E-2,1.77E-2,1]
[null,null,null,null,null,null,null,null,null,null,null,null,null,null,null,null,"ООО \"Транзит-Электро-Тюмень\"",2023,5.3900000000000003E-2,1.7500000000000002E-2,1]
[null,null,null,null,null,null,null,null,null,null,null,null,null,null,null,null,"ООО \"Транзит-Электро-Тюмень\"",2024,5.2999999999999999E-2,1.72E-2,1]
[null,null,null,null,null,null,null,null,null,null,null,null,null,null,null,7,"ООО \"Тюменская электросетевая компания\"",2020,0.1086,5.4699999999999999E-2,1]
[null,null,null,null,null,null,null,null,null,null,null,null,null,null,null,null,"ООО \"Тюменская электросетевая компания\"",2021,0.1069,5.3900000000000003E-2,1]
[null,null,null,null,null,null,null,null,null,null,null,null,null,null,null,null,"ООО \"Тюменская электросетевая компания\"",2022,0.1053,5.3100000000000001E-2,1]
[null,null,null,null,null,null,null,null,null,null,null,null,null,null,null,null,"ООО \"Тюменская электросетевая компания\"",2023,0.1037,5.2299999999999999E-2,1]
[null,null,null,null,null,null,null,null,null,null,null,null,null,null,null,null,"ООО \"Тюменская электросетевая компания\"",2024,0.1022,5.1499999999999997E-2,1]
[null,null,"ТСО","Филиал ОАО \"РЖД\" Трансэнерго Свердловская дирекция по энергообеспечению (по сетям Ишимской, Егоршинской, Серовской, Тюменской дистанций электроснабжения)","период",2021,null,null,null,null,null,null,null,null,null,8,"ООО \"Элтранс\"",2020,0,0,1]
[null,null,null,null,null,null,null,null,null,null,null,null,null,null,null,null,"ООО \"Элтранс\"",2021,0,0,1]
[null,null,null,null,null,null,null,null,null,null,null,null,null,null,null,null,"ООО \"Элтранс\"",2022,0,0,1]
[null,null,"продолжительность план","факт",null,null,null,null,null,null,null,null,null,null,null,null,"ООО \"Элтранс\"",2023,0,0,1]
[null,null,{"$f":"SUMIFS(R2:R156,S2:S156,D37,Q2:Q156,F37)","v":0},null,null,null,null,null,null,null,null,null,null,null,null,null,"ООО \"Элтранс\"",2024,0,0,1]
[null,null,null,null,null,null,null,null,null,null,null,null,null,null,null,9,"ООО \"Агенство Интеллект-Сервис\"",2022,1.9124333773087067E-2,6.1904261213720302E-3,1]
[null,null,"частота план","факт",null,null,null,null,null,null,null,null,null,null,null,null,"ООО \"Агенство Интеллект-Сервис\"",2023,1.8837468766490759E-2,6.0975697295514494E-3,1]
[null,null,{"$f":"SUMIFS(R2:R156,T2:T156,D37,Q2:Q156,F37)","v":0},null,null,null,null,null,null,null,null,null,null,null,null,null,"ООО \"Агенство Интеллект-Сервис\"",2024,1.8554906734993399E-2,6.0061061836081779E-3,1]
[null,null,null,null,null,null,null,null,null,null,null,null,null,null,null,null,"ООО \"Агенство Интеллект-Сервис\"",2025,1.8276583133968499E-2,5.9160145908540547E-3,1]
[null,null,null,null,null,null,null,null,null,null,null,null,null,null,null,null,"ООО \"Агенство Интеллект-Сервис\"",2026,1.800243438695897E-2,5.8272743719912437E-3,1]
[null,null,null,null,null,null,null,null,null,null,null,null,null,null,null,10,"ООО \"Альтера\"",2020,5.1999999999999998E-2,6.93E-2,1]
[null,null,null,null,null,null,null,null,null,null,null,null,null,null,null,null,"ООО \"Альтера\"",2021,5.1200000000000002E-2,6.83E-2,1]
[null,null,null,null,null,null,null,null,null,null,null,null,null,null,null,null,"ООО \"Альтера\"",2022,5.04E-2,6.7299999999999999E-2,1]
[null,null,null,null,null,null,null,null,null,null,null,null,null,null,null,null,"ООО \"Альтера\"",2023,4.9700000000000001E-2,6.6299999999999998E-2,1]
[null,null,null,null,null,null,null,null,null,null,null,null,null,null,null,null,"ООО \"Альтера\"",2024,4.8899999999999999E-2,6.5299999999999997E-2,1]
[null,null,null,null,null,null,null,null,null,null,null,null,null,null,null,11,"ООО СК \"Восток\"",2020,0.22459999999999999,0.18010000000000001,1]
[null,null,null,null,null,null,null,null,null,null,null,null,null,null,null,null,"ООО СК \"Восток\"",2021,0.22120000000000001,0.1774,1]
[null,null,null,null,null,null,null,null,null,null,null,null,null,null,null,null,"ООО СК \"Восток\"",2022,0.21790000000000001,0.17469999999999999,1]
[null,null,null,null,null,null,null,null,null,null,null,null,null,null,null,null,"ООО СК \"Восток\"",2023,0.21460000000000001,0.1721,1]
[null,null,null,null,null,null,null,null,null,null,null,null,null,null,null,null,"ООО СК \"Восток\"",2024,0.2114,0.16950000000000001,1]
[null,null,null,null,null,null,null,null,null,null,null,null,null,null,null,12,"ООО \"Ханты-Мансийские городские электрические сети\" ",2020,0.1789,9.3700000000000006E-2,1.0709]
[null,null,null,null,null,null,null,null,null,null,null,null,null,null,null,null,"ООО \"Ханты-Мансийские городские электрические сети\" ",2021,0.1762,9.2299999999999993E-2,1.0548]
[null,null,null,null,null,null,null,null,null,null,null,null,null,null,null,null,"ООО \"Ханты-Мансийские городские электрические сети\" ",2022,0.1736,9.0899999999999995E-2,1.0389999999999999]
[null,null,null,null,null,null,null,null,null,null,null,null,null,null,null,null,"ООО \"Ханты-Мансийские городские электрические сети\" ",2023,0.17100000000000001,8.9499999999999996E-2,1.0234000000000001]
[null,null,null,null,null,null,null,null,null,null,null,null,null,null,null,null,"ООО \"Ханты-Мансийские городские электрические сети\" ",2024,0.16839999999999999,8.8200000000000001E-2,1.008]
[null,null,null,null,null,null,null,null,null,null,null,null,null,null,null,13,"АО \"Варьеганэнергонефть\"",2020,0.28660000000000002,0.22850000000000001,1]
[null,null,null,null,null,null,null,null,null,null,null,null,null,null,null,null,"АО \"Варьеганэнергонефть\"",2021,0.2823,0.22509999999999999,1]
[null,null,null,null,null,null,null,null,null,null,null,null,null,null,null,null,"АО \"Варьеганэнергонефть\"",2022,0.27800000000000002,0.22170000000000001,1]
[null,null,null,null,null,null,null,null,null,null,null,null,null,null,null,null,"АО \"Варьеганэнергонефть\"",2023,0.27389999999999998,0.21840000000000001,1]
[null,null,null,null,null,null,null,null,null,null,null,null,null,null,null,null,"АО \"Варьеганэнергонефть\"",2024,0.2697,0.21510000000000001,1]
[null,null,null,null,null,null,null,null,null,null,null,null,null,null,null,14,"ООО \"МегионЭнергоНефть\"",2020,2.2700000000000001E-2,8.8000000000000005E-3,1]
[null,null,null,null,null,null,null,null,null,null,null,null,null,null,null,null,"ООО \"МегионЭнергоНефть\"",2021,2.24E-2,8.6999999999999994E-3,1]
[null,null,null,null,null,null,null,null,null,null,null,null,null,null,null,null,"ООО \"МегионЭнергоНефть\"",2022,2.2100000000000002E-2,8.6E-3,1]
[null,null,null,null,null,null,null,null,null,null,null,null,null,null,null,null,"ООО \"МегионЭнергоНефть\"",2023,2.1700000000000001E-2,8.3999999999999995E-3,1]
[null,null,null,null,null,null,null,null,null,null,null,null,null,null,null,null,"ООО \"МегионЭнергоНефть\"",2024,2.1399999999999999E-2,8.3000000000000001E-3,1]
[null,null,null,null,null,null,null,null,null,null,null,null,null,null,null,15,"ООО «ЭЛЕК»",2020,0.2994,0.12609999999999999,1]
[null,null,null,null,null,null,null,null,null,null,null,null,null,null,null,null,"ООО «ЭЛЕК»",2021,0.2949,0.1242,1]
[null,null,null,null,null,null,null,null,null,null,null,null,null,null,null,null,"ООО «ЭЛЕК»",2022,0.29049999999999998,0.12230000000000001,1]
[null,null,null,null,null,null,null,null,null,null,null,null,null,null,null,null,"ООО «ЭЛЕК»",2023,0.28620000000000001,0.1205,1]
[null,null,null,null,null,null,null,null,null,null,null,null,null,null,null,null,"ООО «ЭЛЕК»",2024,0.28189999999999998,0.1187,1]
[null,null,null,null,null,null,null,null,null,null,null,null,null,null,null,16,"АО «Аэропорт Сургут»",2020,0,0,1]
[null,null,null,null,null,null,null,null,null,null,null,null,null,null,null,null,"АО «Аэропорт Сургут»",2021,0,0,1]
[null,null,null,null,null,null,null,null,null,null,null,null,null,null,null,null,"АО «Аэропорт Сургут»",2022,0,0,1]
[null,null,null,null,null,null,null,null,null,null,null,null,null,null,null,null,"АО «Аэропорт Сургут»",2023,0,0,1]
[null,null,null,null,null,null,null,null,null,null,null,null,null,null,null,null,"АО «Аэропорт Сургут»",2024,0,0,1]
[null,null,null,null,null,null,null,null,null,null,null,null,null,null,null,17,"Филиал ОАО «РЖД» Трансэнерго Свердловская дирекция по энергообеспечению (по сетям Сургутской дистанции электроснабжения)",2020,0.1653,0.31509999999999999,1.1382000000000001]
[null,null,null,null,null,null,null,null,null,null,null,null,null,null,null,null,"Филиал ОАО «РЖД» Трансэнерго Свердловская дирекция по энергообеспечению (по сетям Сургутской дистанции электроснабжения)",2021,0.1628,0.31040000000000001,1.1211]
[null,null,null,null,null,null,null,null,null,null,null,null,null,null,null,null,"Филиал ОАО «РЖД» Трансэнерго Свердловская дирекция по энергообеспечению (по сетям Сургутской дистанции электроснабжения)",2022,0.16039999999999999,0.30570000000000003,1.1043000000000001]
[null,null,null,null,null,null,null,null,null,null,null,null,null,null,null,null,"Филиал ОАО «РЖД» Трансэнерго Свердловская дирекция по энергообеспечению (по сетям Сургутской дистанции электроснабжения)",2023,0.158,0.30109999999999998,1.0878000000000001]
[null,null,null,null,null,null,null,null,null,null,null,null,null,null,null,null,"Филиал ОАО «РЖД» Трансэнерго Свердловская дирекция по энергообеспечению (по сетям Сургутской дистанции электроснабжения)",2024,0.15559999999999999,0.29659999999999997,1.0714999999999999]
[null,null,null,null,null,null,null,null,null,null,null,null,null,null,null,18,"ООО «Газпром трансгаз Сургут»",2020,0,0,1]
[null,null,null,null,null,null,null,null,null,null,null,null,null,null,null,null,"ООО «Газпром трансгаз Сургут»",2021,0,0,1]
[null,null,null,null,null,null,null,null,null,null,null,null,null,null,null,null,"ООО «Газпром трансгаз Сургут»",2022,0,0,1]
[null,null,null,null,null,null,null,null,null,null,null,null,null,null,null,null,"ООО «Газпром трансгаз Сургут»",2023,0,0,1]
[null,null,null,null,null,null,null,null,null,null,null,null,null,null,null,null,"ООО «Газпром трансгаз Сургут»",2024,0,0,1]
[null,null,null,null,null,null,null,null,null,null,null,null,null,null,null,19,"ПАО «Сургутнефтегаз»",2020,0.15179999999999999,4.3799999999999999E-2,1]
[null,null,null,null,null,null,null,null,null,null,null,null,null,null,null,null,"ПАО «Сургутнефтегаз»",2021,0.14949999999999999,4.3200000000000002E-2,1]
[null,null,null,null,null,null,null,null,null,null,null,null,null,null,null,null,"ПАО «Сургутнефтегаз»",2022,0.14729999999999999,4.2500000000000003E-2,1]
[null,null,null,null,null,null,null,null,null,null,null,null,null,null,null,null,"ПАО «Сургутнефтегаз»",2023,0.14510000000000001,4.19E-2,1]
[null,null,null,null,null,null,null,null,null,null,null,null,null,null,null,null,"ПАО «Сургутнефтегаз»",2024,0.1429,4.1200000000000001E-2,1]
[null,null,null,null,null,null,null,null,null,null,null,null,null,null,null,20,"АО «ННК - Нижневартовское нефтегазодобывающее предприятие»",2020,"0, 0000","0, 0000",1]
[null,null,null,null,null,null,null,null,null,null,null,null,null,null,null,null,"АО «ННК - Нижневартовское нефтегазодобывающее предприятие»",2021,"0, 0000","0, 0000",1]
[null,null,null,null,null,null,null,null,null,null,null,null,null,null,null,null,"АО «ННК - Нижневартовское нефтегазодобывающее предприятие»",2022,"0, 0000","0, 0000",1]
[null,null,null,null,null,null,null,null,null,null,null,null,null,null,null,null,"АО «ННК - Нижневартовское нефтегазодобывающее предприятие»",2023,"0, 0000","0, 0000",1]
[null,null,null,null,null,null,null,null,null,null,null,null,null,null,null,null,"АО «ННК - Нижневартовское нефтегазодобывающее предприятие»",2024,"0, 0000","0, 0000",1]
[null,null,null,null,null,null,null,null,null,null,null,null,null,null,null,21,"МУП «Сургутские районные электрические сети» муниципального образования Сургутский район",2020,1.1999999999999999E-3,5.7000000000000002E-3,1]
[null,null,null,null,null,null,null,null,null,null,null,null,null,null,null,null,"МУП «Сургутские районные электрические сети» муниципального образования Сургутский район",2021,1.1999999999999999E-3,5.5999999999999999E-3,1]
[null,null,null,null,null,null,null,null,null,null,null,null,null,null,null,null,"МУП «Сургутские районные электрические сети» муниципального образования Сургутский район",2022,1.1000000000000001E-3,5.4999999999999997E-3,1]
[null,null,null,null,null,null,null,null,null,null,null,null,null,null,null,null,"МУП «Сургутские районные электрические сети» муниципального образования Сургутский район",2023,1.1000000000000001E-3,5.4000000000000003E-3,1]
[null,null,null,null,null,null,null,null,null,null,null,null,null,null,null,null,"МУП «Сургутские районные электрические сети» муниципального образования Сургутский район",2024,1.1000000000000001E-3,5.4000000000000003E-3,1]
[null,null,null,null,null,null,null,null,null,null,null,null,null,null,null,22,"ООО «Луч-Электро»",2020,0,0,1]
[null,null,null,null,null,null,null,null,null,null,null,null,null,null,null,null,"ООО «Луч-Электро»",2021,0,0,1]
[null,null,null,null,null,null,null,null,null,null,null,null,null,null,null,null,"ООО «Луч-Электро»",2022,0,0,1]
[null,null,null,null,null,null,null,null,null,null,null,null,null,null,null,null,"ООО «Луч-Электро»",2023,0,0,1]
[null,null,null,null,null,null,null,null,null,null,null,null,null,null,null,null,"ООО «Луч-Электро»",2024,0,0,1]
[null,null,null,null,null,null,null,null,null,null,null,null,null,null,null,23,"ООО «РН-Юганскнефтегаз»",2020,0.252,0.13519999999999999,1]
[null,null,null,null,null,null,null,null,null,null,null,null,null,null,null,null,"ООО «РН-Юганскнефтегаз»",2021,0.2482,0.13320000000000001,1]
[null,null,null,null,null,null,null,null,null,null,null,null,null,null,null,null,"ООО «РН-Юганскнефтегаз»",2022,0.2445,0.13120000000000001,1]
[null,null,null,null,null,null,null,null,null,null,null,null,null,null,null,null,"ООО «РН-Юганскнефтегаз»",2023,0.24079999999999999,0.12920000000000001,1]
[null,null,null,null,null,null,null,null,null,null,null,null,null,null,null,null,"ООО «РН-Юганскнефтегаз»",2024,0.23719999999999999,0.1273,1]
[null,null,null,null,null,null,null,null,null,null,null,null,null,null,null,24,"ООО «Газпром энерго»",2020,1.7100000000000001E-2,6.9999999999999999E-4,1]
[null,null,null,null,null,null,null,null,null,null,null,null,null,null,null,null,"ООО «Газпром энерго»",2021,1.6799999999999999E-2,6.9999999999999999E-4,1]
[null,null,null,null,null,null,null,null,null,null,null,null,null,null,null,null,"ООО «Газпром энерго»",2022,1.66E-2,6.9999999999999999E-4,1]
[null,null,null,null,null,null,null,null,null,null,null,null,null,null,null,null,"ООО «Газпром энерго»",2023,1.6299999999999999E-2,6.9999999999999999E-4,1]
[null,null,null,null,null,null,null,null,null,null,null,null,null,null,null,null,"ООО «Газпром энерго»",2024,1.61E-2,6.9999999999999999E-4,1]
[null,null,null,null,null,null,null,null,null,null,null,null,null,null,null,25,"ООО «Газпромнефть-Хантос»",2020,0,0,1]
[null,null,null,null,null,null,null,null,null,null,null,null,null,null,null,null,"ООО «Газпромнефть-Хантос»",2021,0,0,1]
[null,null,null,null,null,null,null,null,null,null,null,null,null,null,null,null,"ООО «Газпромнефть-Хантос»",2022,0,0,1]
[null,null,null,null,null,null,null,null,null,null,null,null,null,null,null,null,"ООО «Газпромнефть-Хантос»",2023,0,0,1]
[null,null,null,null,null,null,null,null,null,null,null,null,null,null,null,null,"ООО «Газпромнефть-Хантос»",2024,0,0,1]
[null,null,null,null,null,null,null,null,null,null,null,null,null,null,null,26,"АО «Уренгойгорэлектросеть»",2020,0.32869999999999999,0.1469,1]
[null,null,null,null,null,null,null,null,null,null,null,null,null,null,null,null,"АО «Уренгойгорэлектросеть»",2021,0.32379999999999998,0.1447,1]
[null,null,null,null,null,null,null,null,null,null,null,null,null,null,null,null,"АО «Уренгойгорэлектросеть»",2022,0.31890000000000002,0.14249999999999999,1]
[null,null,null,null,null,null,null,null,null,null,null,null,null,null,null,null,"АО «Уренгойгорэлектросеть»",2023,0.31409999999999999,0.1404,1]
[null,null,null,null,null,null,null,null,null,null,null,null,null,null,null,null,"АО «Уренгойгорэлектросеть»",2024,0.30940000000000001,0.13830000000000001,1]
[null,null,null,null,null,null,null,null,null,null,null,null,null,null,null,27,"АО «Ямальская железнодорожная компания»",2020,0,0,1]
[null,null,null,null,null,null,null,null,null,null,null,null,null,null,null,null,"АО «Ямальская железнодорожная компания»",2021,0,0,1]
[null,null,null,null,null,null,null,null,null,null,null,null,null,null,null,null,"АО «Ямальская железнодорожная компания»",2022,0,0,1]
[null,null,null,null,null,null,null,null,null,null,null,null,null,null,null,null,"АО «Ямальская железнодорожная компания»",2023,0,0,1]
[null,null,null,null,null,null,null,null,null,null,null,null,null,null,null,null,"АО «Ямальская железнодорожная компания»",2024,0,0,1]
[null,null,null,null,null,null,null,null,null,null,null,null,null,null,null,28,"ООО «Газпромнефть Энергосистемы»",2020,8.6999999999999994E-3,5.3E-3,1]
[null,null,null,null,null,null,null,null,null,null,null,null,null,null,null,null,"ООО «Газпромнефть Энергосистемы»",2021,8.6E-3,5.1999999999999998E-3,1]
[null,null,null,null,null,null,null,null,null,null,null,null,null,null,null,null,"ООО «Газпромнефть Энергосистемы»",2022,8.3999999999999995E-3,5.1000000000000004E-3,1]
[null,null,null,null,null,null,null,null,null,null,null,null,null,null,null,null,"ООО «Газпромнефть Энергосистемы»",2023,8.3000000000000001E-3,5.1000000000000004E-3,1]
[null,null,null,null,null,null,null,null,null,null,null,null,null,null,null,null,"ООО «Газпромнефть Энергосистемы»",2024,8.2000000000000007E-3,5.0000000000000001E-3,1]
[null,null,null,null,null,null,null,null,null,null,null,null,null,null,null,29,"АО «Энерго-Газ-Ноябрьск»",2020,0.40899999999999997,0.1739,1]
[null,null,null,null,null,null,null,null,null,null,null,null,null,null,null,null,"АО «Энерго-Газ-Ноябрьск»",2021,0.40279999999999999,0.17130000000000001,1]
[null,null,null,null,null,null,null,null,null,null,null,null,null,null,null,null,"АО «Энерго-Газ-Ноябрьск»",2022,0.39679999999999999,0.16869999999999999,1]
[null,null,null,null,null,null,null,null,null,null,null,null,null,null,null,null,"АО «Энерго-Газ-Ноябрьск»",2023,0.39090000000000003,0.16619999999999999,1]
[null,null,null,null,null,null,null,null,null,null,null,null,null,null,null,null,"АО «Энерго-Газ-Ноябрьск»",2024,0.38500000000000001,0.16370000000000001,1]
[null,null,null,null,null,null,null,null,null,null,null,null,null,null,null,30,"АО «Губкинские городские электрические сети»",2020,0.13789999999999999,3.9399999999999998E-2,1]
[null,null,null,null,null,null,null,null,null,null,null,null,null,null,null,null,"АО «Губкинские городские электрические сети»",2021,0.1358,3.8800000000000001E-2,1]
[null,null,null,null,null,null,null,null,null,null,null,null,null,null,null,null,"АО «Губкинские городские электрические сети»",2022,0.1338,3.8199999999999998E-2,1]
[null,null,null,null,null,null,null,null,null,null,null,null,null,null,null,null,"АО «Губкинские городские электрические сети»",2023,0.1318,3.7699999999999997E-2,1]
[null,null,null,null,null,null,null,null,null,null,null,null,null,null,null,null,"АО «Губкинские городские электрические сети»",2024,0.1298,3.7100000000000001E-2,1]
[null,null,null,null,null,null,null,null,null,null,null,null,null,null," ",31,"МУП «Надымские городские электрические сети»",2020,6.8400000000000002E-2,2.35E-2,1]
[null,null,null,null,null,null,null,null,null,null,null,null,null,null,null,null,"МУП «Надымские городские электрические сети»",2021,6.7400000000000002E-2,2.3099999999999999E-2,1]
[null,null,null,null,null,null,null,null,null,null,null,null,null,null,null,null,"МУП «Надымские городские электрические сети»",2022,6.6400000000000001E-2,2.2800000000000001E-2,1]
[null,null,null,null,null,null,null,null,null,null,null,null,null,null,null,null,"МУП «Надымские городские электрические сети»",2023,6.54E-2,2.24E-2,1]
[null,null,null,null,null,null,null,null,null,null,null,null,null,null,null,null,"МУП «Надымские городские электрические сети»",2024,6.4399999999999999E-2,2.2100000000000002E-2,1]
[null,null,null,null,null,null,null,null,null,null,null,null,null,null,null,32,"АО \"Горэлектросеть\"",2018,0.14560000000000001,8.9800000000000005E-2,1]
[null,null,null,null,null,null,null,null,null,null,null,null,null,null,null,null,"АО \"Горэлектросеть\"",2019,0.1434,8.8499999999999995E-2,1]
[null,null,null,null,null,null,null,null,null,null,null,null,null,null,null,null,"АО \"Горэлектросеть\"",2020,0.14119999999999999,8.7099999999999997E-2,1]
[null,null,null,null,null,null,null,null,null,null,null,null,null,null,null,null,"АО \"Горэлектросеть\"",2021,0.1391,8.5800000000000001E-2,1]
[null,null,null,null,null,null,null,null,null,null,null,null,null,null,null,null,"АО \"Горэлектросеть\"",2022,0.13700000000000001,8.4500000000000006E-2,1]
[null,null,null,null,null,null,null,null,null,null,null,null,null,null,null,33,"АО \"Россети Тюмень\"",2018,0.45599401568087866,0.20608410172286826,1.0312620890078223]
[null,null,null,null,null,null,null,null,null,null,null,null,null,null,null,null,"АО \"Россети Тюмень\"",2019,0.44915410544566547,0.20299284019702524,1.0157931576727051]
[null,null,null,null,null,null,null,null,null,null,null,null,null,null,null,null,"АО \"Россети Тюмень\"",2020,0.44241679386398047,0.19994794759406986,1.0005562603076146]
[null,null,null,null,null,null,null,null,null,null,null,null,null,null,null,null,"АО \"Россети Тюмень\"",2021,0.43578054195602078,0.19694872838015881,1]
[null,null,null,null,null,null,null,null,null,null,null,null,null,null,null,null,"АО \"Россети Тюмень\"",2022,0.42924383382668047,0.19399449745445643,1]
[null,null,null,null,null,null,null,null,null,null,null,null,null,null,null,34,"АО \"Югорская территориальная энергетическая компания - Региональные сети\"",2018,1.2818000000000001,0.28470000000000001,1]
[null,null,null,null,null,null,null,null,null,null,null,null,null,null,null,null,"АО \"Югорская территориальная энергетическая компания - Региональные сети\"",2019,1.2625999999999999,0.28039999999999998,1]
[null,null,null,null,null,null,null,null,null,null,null,null,null,null,null,null,"АО \"Югорская территориальная энергетическая компания - Региональные сети\"",2020,1.2436,0.2762,1]
[null,null,null,null,null,null,null,null,null,null,null,null,null,null,null,null,"АО \"Югорская территориальная энергетическая компания - Региональные сети\"",2021,1.2250000000000001,0.27210000000000001,1]
[null,null,null,null,null,null,null,null,null,null,null,null,null,null,null,null,"АО \"Югорская территориальная энергетическая компания - Региональные сети\"",2022,1.2065999999999999,0.26800000000000002,1]
[null,null,null,null,null,null,null,null,null,null,null,null,null,null,null,35,"ООО \"Сургутские городские электрические сети\"",2018,6.25E-2,4.2799999999999998E-2,1]
[null,null,null,null,null,null,null,null,null,null,null,null,null,null,null,null,"ООО \"Сургутские городские электрические сети\"",2019,6.1499999999999999E-2,4.2200000000000001E-2,1]
[null,null,null,null,null,null,null,null,null,null,null,null,null,null,null,null,"ООО \"Сургутские городские электрические сети\"",2020,6.0600000000000001E-2,4.1500000000000002E-2,1]
[null,null,null,null,null,null,null,null,null,null,null,null,null,null,null,null,"ООО \"Сургутские городские электрические сети\"",2021,5.9700000000000003E-2,4.0899999999999999E-2,1]
[null,null,null,null,null,null,null,null,null,null,null,null,null,null,null,null,"ООО \"Сургутские городские электрические сети\"",2022,5.8799999999999998E-2,4.0300000000000002E-2,1]
[null,null,null,null,null,null,null,null,null,null,null,null,null,null,null,36,"АО \"ЮРЭСК\"",2018,4.1599999999999996E-3,4.444E-2,1.2090000000000001]
[null,null,null,null,null,null,null,null,null,null,null,null,null,null,null,null,"АО \"ЮРЭСК\"",2019,4.1000000000000003E-3,4.3779999999999999E-2,1.1915]
[null,null,null,null,null,null,null,null,null,null,null,null,null,null,null,null,"АО \"ЮРЭСК\"",2020,4.0400000000000002E-3,4.3119999999999999E-2,1.1736]
[null,null,null,null,null,null,null,null,null,null,null,null,null,null,null,null,"АО \"ЮРЭСК\"",2021,3.98E-3,4.2470000000000001E-2,1.1566000000000001]
[null,null,null,null,null,null,null,null,null,null,null,null,null,null,null,null,"АО \"ЮРЭСК\"",2022,3.9199999999999999E-3,4.1840000000000002E-2,1.1392]
[null,null,null,null,null,null,null,null,null,null,null,null,null,null,null,null,"ООО \"Региональная энергетическая компания\"",2020,1.3979999999999999,0.4456,1]
[null,null,null,null,null,null,null,null,null,null,null,null,null,null,null,37,"ООО \"Региональная энергетическая компания\"",2021,0.42430000000000001,0.1108,1]
[null,null,null,null,null,null,null,null,null,null,null,null,null,null,null,null,"ООО \"Региональная энергетическая компания\"",2022,0.41799999999999998,0.10920000000000001,1]
[null,null,null,null,null,null,null,null,null,null,null,null,null,null,null,null,"ООО \"Региональная энергетическая компания\"",2023,0.41170000000000001,0.1075,1]
[null,null,null,null,null,null,null,null,null,null,null,null,null,null,null,null,"ООО \"Региональная энергетическая компания\"",2024,0.40550000000000003,0.10589999999999999,1]
[null,null,null,null,null,null,null,null,null,null,null,null,null,null,null,null,"ООО \"Региональная энергетическая компания\"",2025,0.39950000000000002,0.1043,1]
[null,null,null,null,null,null,null,null,null,null,null,null,null,null,null,null,"ООО \"СеверСетьРазвитие\"",2020,2.2774999999999999,0.4456,1]
[null,null,null,null,null,null,null,null,null,null,null,null,null,null,null,38,"ООО \"СеверСетьРазвитие\"",2021,0,0,1]
[null,null,null,null,null,null,null,null,null,null,null,null,null,null,null,null,"ООО \"СеверСетьРазвитие\"",2022,0,0,1]
[null,null,null,null,null,null,null,null,null,null,null,null,null,null,null,null,"ООО \"СеверСетьРазвитие\"",2023,0,0,1]
[null,null,null,null,null,null,null,null,null,null,null,null,null,null,null,null,"ООО \"СеверСетьРазвитие\"",2024,0,0,1]
[null,null,null,null,null,null,null,null,null,null,null,null,null,null,null,null,"ООО \"СеверСетьРазвитие\"",2025,0,0,1]
[null,null,null,null,null,null,null,null,null,null,null,null,null,null,null,null,"ООО \"Энергонефть Томск\"",2020,2.2774999999999999,0.4456,1]
[null,null,null,null,null,null,null,null,null,null,null,null,null,null,null,39,"ООО \"Энергонефть Томск\"",2021,3.1E-2,0.26450000000000001,1]
[null,null,null,null,null,null,null,null,null,null,null,null,null,null,null,null,"ООО \"Энергонефть Томск\"",2022,3.0499999999999999E-2,0.26050000000000001,1]
[null,null,null,null,null,null,null,null,null,null,null,null,null,null,null,null,"ООО \"Энергонефть Томск\"",2023,3.0099999999999998E-2,0.25659999999999999,1]
[null,null,null,null,null,null,null,null,null,null,null,null,null,null,null,null,"ООО \"Энергонефть Томск\"",2024,2.9600000000000001E-2,0.25269999999999998,1]
[null,null,null,null,null,null,null,null,null,null,null,null,null,null,null,null,"ООО \"Энергонефть Томск\"",2025,2.92E-2,0.249,1]
[null,null,null,null,null,null,null,null,null,null,null,null,null,null,null,40,"АО \"РСК Ямала\"",2021,0.14183999999999999,0.13080800000000001,1]
[null,null,null,null,null,null,null,null,null,null,null,null,null,null,null,null,"АО \"РСК Ямала\"",2022,0.13971239999999999,0.12884588,1]
[null,null,null,null,null,null,null,null,null,null,null,null,null,null,null,null,"АО \"РСК Ямала\"",2023,0.13761671399999997,0.12691319179999999,1]
[null,null,null,null,null,null,null,null,null,null,null,null,null,null,null,null,"АО \"РСК Ямала\"",2024,0.13555246328999998,0.12500949392299998,1]
[null,null,null,null,null,null,null,null,null,null,null,null,null,null,null,null,"АО \"РСК Ямала\"",2025,0.13351917634064997,0.123134351514155,1]
[null,null,null,null,null,null,null,null,null,null,null,null,null,null,null,41,"АО \"Черногорэнерго\"",2018,4.4379,0.99280000000000002,1]
[null,null,null,null,null,null,null,null,null,null,null,null,null,null,null,null,"АО \"Черногорэнерго\"",2019,3.1791999999999998,0.83289999999999997,1]
[null,null,null,null,null,null,null,null,null,null,null,null,null,null,null,null,"АО \"Черногорэнерго\"",2020,2.2774999999999999,0.69879999999999998,1]
[null,null,null,null,null,null,null,null,null,null,null,null,null,null,null,null,"АО \"Черногорэнерго\"",2021,1.6315999999999999,0.58620000000000005,1]
[null,null,null,null,null,null,null,null,null,null,null,null,null,null,null,null,"АО \"Черногорэнерго\"",2022,1.1688000000000001,0.49180000000000001,1]
[null,null,null,null,null,null,null,null,null,null,null,null,null,null,null,42,{"$f":"Q277","v":"АО \"Сибирско-Уральская энергетическая компания\""},2018,0.92589999999999995,0.51219999999999999,1]
[null,null,null,null,null,null,null,null,null,null,null,null,null,null,null,null,{"$f":"Q210","v":"АО \"Сибирско-Уральская энергетическая компания\""},2019,0.91200000000000003,0.50449999999999995,1]
[null,null,null,null,null,null,null,null,null,null,null,null,null,null,null,null,{"$f":"Q211","v":"АО \"Сибирско-Уральская энергетическая компания\""},2020,0.89829999999999999,0.49690000000000001,1]
[null,null,null,null,null,null,null,null,null,null,null,null,null,null,null,null,"АО \"Сибирско-Уральская энергетическая компания\"",2021,0.88490000000000002,0.48949999999999999,1]
[null,null,null,null,null,null,null,null,null,null,null,null,null,null,null,null,"АО \"Сибирско-Уральская энергетическая компания\"",2022,0.87160000000000004,0.48220000000000002,1]
[null,null,null,null,null,null,null,null,null,null,null,null,null,null,null,43,"АО \"НордЭнерджиСистемс\"",2022,0,0,1]
[null,null,null,null,null,null,null,null,null,null,null,null,null,null,null,null,{"$f":"Q215","v":"АО \"НордЭнерджиСистемс\""},2023,0,0,1]
[null,null,null,null,null,null,null,null,null,null,null,null,null,null,null,null,{"$f":"Q216","v":"АО \"НордЭнерджиСистемс\""},2024,0,0,1]
[null,null,null,null,null,null,null,null,null,null,null,null,null,null,null,null,"АО \"НордЭнерджиСистемс\"",2025,0,0,1]
[null,null,null,null,null,null,null,null,null,null,null,null,null,null,null,null,"АО \"НордЭнерджиСистемс\"",2026,0,0,1]
[null,null,null,null,null,null,null,null,null,null,null,null,null,null,null,44,"ООО \"Дорстрой\"",2020,0,0,1]
[null,null,null,null,null,null,null,null,null,null,null,null,null,null,null,null,"ООО \"Дорстрой\"",2021,0,0,1]
[null,null,null,null,null,null,null,null,null,null,null,null,null,null,null,null,"ООО \"Дорстрой\"",2022,0,0,1]
[null,null,null,null,null,null,null,null,null,null,null,null,null,null,null,null,"ООО \"Дорстрой\"",2023,0,0,1]
[null,null,null,null,null,null,null,null,null,null,null,null,null,null,null,null,"ООО \"Дорстрой\"",2024,0,0,1]
[]
[]
[]
[]
[]
[]
[]
[]
[]
[]
[null,null,null,null,null,null,null,null,null,null,null,null,null,null,null,null,"Столбец1",2018,null,null,"Столбец1"]
[null,null,null,null,null,null,null,null,null,null,null,null,null,null,null,1,{"$f":"Q2","v":"Филиал ОАО \"РЖД\" Трансэнерго Свердловская дирекция по энергообеспечению (по сетям Ишимской, Егоршинской, Серовской, Тюменской дистанций электроснабжения)"},2019,null,null,"Тюменская область"]
[null,null,null,null,null,null,null,null,null,null,null,null,null,null,null,2,{"$f":"Q7","v":"Филиал \"Уральский\" АО \"Оборонэнерго\""},2020,null,null,"Ханты-Мансийский автономный округ - Югра"]
[null,null,null,null,null,null,null,null,null,null,null,null,null,null,null,3,{"$f":"Q12","v":"ООО \"ДСК-Энерго\""},2021,null,null,"Ямало-Ненецкий автономный округ"]
[null,null,null,null,null,null,null,null,null,null,null,null,null,null,null,4,{"$f":"Q17","v":"ООО \"РемЭнергоСтройСервис\""},2022]
[null,null,null,null,null,null,null,null,null,null,null,null,null,null,null,5,{"$f":"Q22","v":"ООО \"Тобольскпромэнергосеть\""},2023]
[null,null,null,null,null,null,null,null,null,null,null,null,null,null,null,6,{"$f":"Q27","v":"ООО \"Транзит-Электро-Тюмень\""},2024]
[null,null,null,null,null,null,null,null,null,null,null,null,null,null,null,7,{"$f":"Q32","v":"ООО \"Тюменская электросетевая компания\""},2025]
[null,null,null,null,null,null,null,null,null,null,null,null,null,null,null,8,{"$f":"Q37","v":"ООО \"Элтранс\""}]
[null,null,null,null,null,null,null,null,null,null,null,null,null,null,null,9,{"$f":"Q42","v":"ООО \"Агенство Интеллект-Сервис\""}]
[null,null,null,null,null,null,null,null,null,null,null,null,null,null,null,10,{"$f":"Q47","v":"ООО \"Альтера\""}]
[null,null,null,null,null,null,null,null,null,null,null,null,null,null,null,11,{"$f":"Q52","v":"ООО СК \"Восток\""}]
[null,null,null,null,null,null,null,null,null,null,null,null,null,null,null,12,{"$f":"Q57","v":"ООО \"Ханты-Мансийские городские электрические сети\" "}]
[null,null,null,null,null,null,null,null,null,null,null,null,null,null,null,13,{"$f":"Q62","v":"АО \"Варьеганэнергонефть\""}]
[null,null,null,null,null,null,null,null,null,null,null,null,null,null,null,14,{"$f":"Q67","v":"ООО \"МегионЭнергоНефть\""}]
[null,null,null,null,null,null,null,null,null,null,null,null,null,null,null,15,{"$f":"Q72","v":"ООО «ЭЛЕК»"}]
[null,null,null,null,null,null,null,null,null,null,null,null,null,null,null,16,{"$f":"Q77","v":"АО «Аэропорт Сургут»"}]
[null,null,null,null,null,null,null,null,null,null,null,null,null,null,null,17,{"$f":"Q82","v":"Филиал ОАО «РЖД» Трансэнерго Свердловская дирекция по энергообеспечению (по сетям Сургутской дистанции электроснабжения)"}]
[null,null,null,null,null,null,null,null,null,null,null,null,null,null,null,18,{"$f":"Q87","v":"ООО «Газпром трансгаз Сургут»"}]
[null,null,null,null,null,null,null,null,null,null,null,null,null,null,null,19,{"$f":"Q92","v":"ПАО «Сургутнефтегаз»"}]
[null,null,null,null,null,null,null,null,null,null,null,null,null,null,null,20,{"$f":"Q97","v":"АО «ННК - Нижневартовское нефтегазодобывающее предприятие»"}]
[null,null,null,null,null,null,null,null,null,null,null,null,null,null,null,21,{"$f":"Q102","v":"МУП «Сургутские районные электрические сети» муниципального образования Сургутский район"}]
[null,null,null,null,null,null,null,null,null,null,null,null,null,null,null,22,{"$f":"Q107","v":"ООО «Луч-Электро»"}]
[null,null,null,null,null,null,null,null,null,null,null,null,null,null,null,23,{"$f":"Q112","v":"ООО «РН-Юганскнефтегаз»"}]
[null,null,null,null,null,null,null,null,null,null,null,null,null,null,null,24,{"$f":"Q117","v":"ООО «Газпром энерго»"}]
[null,null,null,null,null,null,null,null,null,null,null,null,null,null,null,25,{"$f":"Q122","v":"ООО «Газпромнефть-Хантос»"}]
[null,null,null,null,null,null,null,null,null,null,null,null,null,null,null,26,{"$f":"Q127","v":"АО «Уренгойгорэлектросеть»"}]
[null,null,null,null,null,null,null,null,null,null,null,null,null,null,null,27,{"$f":"Q132","v":"АО «Ямальская железнодорожная компания»"}]
[null,null,null,null,null,null,null,null,null,null,null,null,null,null,null,28,{"$f":"Q137","v":"ООО «Газпромнефть Энергосистемы»"}]
[null,null,null,null,null,null,null,null,null,null,null,null,null,null,null,29,{"$f":"Q142","v":"АО «Энерго-Газ-Ноябрьск»"}]
[null,null,null,null,null,null,null,null,null,null,null,null,null,null,null,30,{"$f":"Q151","v":"АО «Губкинские городские электрические сети»"}]
[null,null,null,null,null,null,null,null,null,null,null,null,null,null,null,31,{"$f":"Q152","v":"МУП «Надымские городские электрические сети»"}]
[null,null,null,null,null,null,null,null,null,null,null,null,null,null,null,32,"АО \"Горэлектросеть\""]
[null,null,null,null,null,null,null,null,null,null,null,null,null,null,null,33,"АО \"Россети Тюмень\""]
[null,null,null,null,null,null,null,null,null,null,null,null,null,null,null,34,"АО \"Черногорэнерго\""]
[null,null,null,null,null,null,null,null,null,null,null,null,null,null,null,35,"АО \"ЮРЭСК\""]
[null,null,null,null,null,null,null,null,null,null,null,null,null,null,null,36,"АО \"Югорская территориальная энергетическая компания - Региональные сети\""]
[null,null,null,null,null,null,null,null,null,null,null,null,null,null,null,37,"ООО \"Региональная энергетическая компания\""]
[null,null,null,null,null,null,null,null,null,null,null,null,null,null,null,38,"ООО \"СеверСетьРазвитие\""]
[null,null,null,null,null,null,null,null,null,null,null,null,null,null,null,39,"ООО \"Сургутские городские электрические сети\""]
[null,null,null,null,null,null,null,null,null,null,null,null,null,null,null,40,"АО \"РСК Ямала\""]
[null,null,null,null,null,null,null,null,null,null,null,null,null,null,null,41,"ООО \"Энергонефть Томск\""]
[null,null,null,null,null,null,null,null,null,null,null,null,null,null,null,42,"АО \"Сибирско-Уральская энергетическая компания\""]
[null,null,null,null,null,null,null,null,null,null,null,null,null,null,null,43,{"$f":"Q215","v":"АО \"НордЭнерджиСистемс\""}]
[null,null,null,null,null,null,null,null,null,null,null,null,null,null,null,44,{"$f":"Q220","v":"ООО \"Дорстрой\""}]